Workbook

Sheet Worksheet
C1: Using the table of tax rates at the top of the page, calculate the deductions and/or net pay for each person as requested in each question
A2: Variables | E2: Annual taxable income (£) | F2: Rate
A3: SHOW ANSWERS | B3: FALSE | E3: On the first £12 570 | F3: 0
A4: Tax Bands/Rates | E4: Over £12 570 and up to £50 270 | F4: 0.2
A5: Question involves National Insurance as well as tax | B5: TRUE | E5: Over £50 270 | F5: 0.42
A6: =CONCATENATE("Use current English* rates/bands of ",IF(B5,"tax. (National Insurance rates/bands will be randomly chosen)","tax")) -> Use current English* rates/bands of tax. (National Insurance rates/bands will be randomly chosen) | B6: 1
A7: =CONCATENATE("Use randomly chosen rates/bands of ",IF(B5,"tax/National Insurance","tax")) -> Use randomly chosen rates/bands of tax/National Insurance | B7: 30 | C7: 1 | D7: Richard Mitchell earns £1,483 per month and has an annual personal tax allowance of £10,200. Richard also pays National Insurance at a rate of 8·6% on all monthly income over £708. Calculate Richard's annual net pay.
A8: Level of Difficulty
A9: Include questions where some tax is paid in the middle or higher bands | B9: FALSE
A10: All figures in question are expressed annually (i.e. No monthly figures are stated/requested) | B10: FALSE | G10: £16,995·63
C12: 2 | D12: Paige Campbell earns £15,713 per year and has an annual personal tax allowance of £9,600. Paige also pays National Insurance at a rate of 12·7% on all annual income over £8,000. Calculate Paige's yearly net pay.
A13: * English rates used rather than Scottish because Scottish rates have additional bands
G15: £14,733·45
C17: 3 | D17: Mitchell Lewis earns £1,227 per month and has an annual personal tax allowance of £11,760. Mitchell also pays National Insurance at a rate of 13·2% on all annual income over £9,800. Calculate Mitchell's monthly net pay.
G20: £1,173·13
C22: 4 | D22: Ashley Davies earns £1,881 per month and has a yearly personal tax allowance of £12,660. Ashley also pays National Insurance at a rate of 10·7% on all monthly income over £879. Calculate Ashley's annual total deductions.
G25: £1,286·78
C27: 5 | D27: Jack White earns £23,576 per year and has a yearly personal tax allowance of £11,160. Jack also pays National Insurance at a rate of 10·7% on all annual income over £9,300. Calculate Jack's yearly total deductions.
G30: £1,527·53
C32: 6 | D32: Aaron Wright earns £1,192 per month and has a yearly personal tax allowance of £9,900. Aaron also pays National Insurance at a rate of 14·5% on all monthly income over £688. Calculate Aaron's annual total deductions.
G35: £877·11

Sheet SYSTEM FORMULAE
B1: Current English Tax Rates | D1: Tax for this sheet | J1: Annual taxable income (£) | K1: Rate
B2: 12570 | C2: 0 | D2: =IF(Worksheet!$B$6=1,B2,RANDBETWEEN(400,800)*50) -> 12570 | E2: 0 | J2: =CONCATENATE("On the first £",TEXT(D2,"### ###")) -> On the first £12 570 | K2: =E2 -> 0
B3: 50270 | C3: 0.2 | D3: =IF(Worksheet!$B$6=1,B3,RANDBETWEEN(180,400)*500) -> 50270 | E3: =IF(Worksheet!$B$6=1,C3,RANDBETWEEN(E2*100+10,30)/100) -> 0.2 | J3: =CONCATENATE("Over £",TEXT(D2,"### ###")," and up to £",TEXT(D3,"### ###")) -> Over £12 570 and up to £50 270 | K3: =E3 -> 0.2
C4: 0.42 | E4: =IF(Worksheet!$B$6=1,C4,RANDBETWEEN(E3*100+10,70)/100) -> 0.42 | J4: =CONCATENATE("Over £",TEXT(D3,"### ###")) -> Over £50 270 | K4: =E4 -> 0.42
D6: Annual Income | E6: =IF(Worksheet!$B$9,RANDBETWEEN(E7+100+$D$2,1.2*$D$3)/6,RANDBETWEEN(E7+100,E7-100+$D$2)/6)*6 -> 24797 | F6: =E6-E7 -> 12437 | G6: =IF(F6<$D$2,$E$2*F6,IF(F6<$D$3,$E$3*(F6-$D$2)+$E$2*$D$2,$D$2*$E$2+$D$3*$E$3+$E$4*(F6-$D$3))) -> 0 | H6: 1 | I6: =CONCATENATE(B7," ",B8," earns £",TEXT(IF(D9=1,E6,E6/12),IF(AND(D9=2,E6/12<1000),"######","###,###"))," per ",IF(D9=1,"year","month")," and has ",CHOOSE(RANDBETWEEN(1,2),"a yearly","an annual")," personal tax allowance of £",TEXT(E7,"###,###"),". ",IF(Worksheet!$B$5,CONCATENATE(B7," also pays National Insurance at a rate of ",C8*100,"% on all ",IF(F8=1,"annual","monthly")," income over £",IF(F8=1,TEXT(E8,"###,###"),TEXT(E8/12,IF(E8/12<1000,"######","###,###"))),". "),""),CONCATENATE("Calculate ",B7,"'s ",IF(F9=1,CHOOSE(RANDBETWEEN(1,2),"yearly","annual"),"monthly"),IF(E9=1,IF(Worksheet!$B$5," total deductions"," tax")," net pay"),". ")) -> Joe Hughes earns £24,797 per year and has an annual personal tax allowance of £12,360. Joe also pays National Insurance at a rate of 7.9% on all monthly income over £858. Calculate Joe's monthly net pay.
B7: =INDEX('SYSTEM FORMULAE 2'!A$2:A$201,RANDBETWEEN(1,200)) -> Joe | D7: Tax Allowance | E7: =RANDBETWEEN(800/6,1300/6)*60 -> 12360 | F7: NI allowance month/ann
B8: =INDEX('SYSTEM FORMULAE 2'!C$2:C$43,RANDBETWEEN(1,42)) -> Hughes | C8: =(RANDBETWEEN(5,20)+RANDBETWEEN(1,9)/10)/100 -> 0.079 | D8: NI Allowance | E8: =E7/6*5 -> 10300 | F8: =IF(Worksheet!$B$10,1,RANDBETWEEN(1,2)) -> 2 | G8: =IF(Worksheet!$B$5,(E6-E8)*C8,0) -> 1145.263
D9: =IF(Worksheet!$B$10,1,RANDBETWEEN(1,2)) -> 1 | E9: =IF(Worksheet!$B$10,1,RANDBETWEEN(1,2)) -> 2 | F9: =IF(Worksheet!$B$10,1,RANDBETWEEN(1,2)) -> 2 | L9: =TEXT(IF(E9=1,G6+G8,E6-G6-G8)/IF(F9=2,12,1),"£#,###.00") -> £1,970.98
D10: earnings month/year | E10: net pay/ded | F10: final ans year/month
D11: Annual Income | E11: =IF(Worksheet!$B$9,RANDBETWEEN(E12+100+$D$2,1.2*$D$3)/6,RANDBETWEEN(E12+100,E12-100+$D$2)/6)*6 -> 19307 | F11: =E11-E12 -> 7847 | G11: =IF(F11<$D$2,$E$2*F11,IF(F11<$D$3,$E$3*(F11-$D$2)+$E$2*$D$2,$D$2*$E$2+$D$3*$E$3+$E$4*(F11-$D$3))) -> 0 | H11: 2 | I11: =CONCATENATE(B12," ",B13," earns £",TEXT(IF(D14=1,E11,E11/12),IF(AND(D14=2,E11/12<1000),"######","###,###"))," per ",IF(D14=1,"year","month")," and has ",CHOOSE(RANDBETWEEN(1,2),"a yearly","an annual")," personal tax allowance of £",TEXT(E12,"###,###"),". ",IF(Worksheet!$B$5,CONCATENATE(B12," also pays National Insurance at a rate of ",C13*100,"% on all ",IF(F13=1,"annual","monthly")," income over £",IF(F13=1,TEXT(E13,"###,###"),TEXT(E13/12,IF(E13/12<1000,"######","###,###"))),". "),""),CONCATENATE("Calculate ",B12,"'s ",IF(F14=1,CHOOSE(RANDBETWEEN(1,2),"yearly","annual"),"monthly"),IF(E14=1,IF(Worksheet!$B$5," total deductions"," tax")," net pay"),". ")) -> Jordan Thomas earns £19,307 per year and has a yearly personal tax allowance of £11,460. Jordan also pays National Insurance at a rate of 16.4% on all monthly income over £796. Calculate Jordan's monthly total deductions.
B12: =INDEX('SYSTEM FORMULAE 2'!A$2:A$201,RANDBETWEEN(1,200)) -> Jordan | D12: Tax Allowance | E12: =RANDBETWEEN(800/6,1300/6)*60 -> 11460 | F12: NI allowance month/ann
B13: =INDEX('SYSTEM FORMULAE 2'!C$2:C$43,RANDBETWEEN(1,42)) -> Thomas | C13: =(RANDBETWEEN(5,20)+RANDBETWEEN(1,9)/10)/100 -> 0.164 | D13: NI Allowance | E13: =E12/6*5 -> 9550 | F13: =IF(Worksheet!$B$10,1,RANDBETWEEN(1,2)) -> 2 | G13: =IF(Worksheet!$B$5,(E11-E13)*C13,0) -> 1600.148
D14: =IF(Worksheet!$B$10,1,RANDBETWEEN(1,2)) -> 1 | E14: =IF(Worksheet!$B$10,1,RANDBETWEEN(1,2)) -> 1 | F14: =IF(Worksheet!$B$10,1,RANDBETWEEN(1,2)) -> 2 | L14: =TEXT(IF(E14=1,G11+G13,E11-G11-G13)/IF(F14=2,12,1),"£#,###.00") -> £133.35
D15: earnings month/year | E15: net pay/ded | F15: final ans year/month
D16: Annual Income | E16: =IF(Worksheet!$B$9,RANDBETWEEN(E17+100+$D$2,1.2*$D$3)/6,RANDBETWEEN(E17+100,E17-100+$D$2)/6)*6 -> 10250 | F16: =E16-E17 -> 1310 | G16: =IF(F16<$D$2,$E$2*F16,IF(F16<$D$3,$E$3*(F16-$D$2)+$E$2*$D$2,$D$2*$E$2+$D$3*$E$3+$E$4*(F16-$D$3))) -> 0 | H16: 3 | I16: =CONCATENATE(B17," ",B18," earns £",TEXT(IF(D19=1,E16,E16/12),IF(AND(D19=2,E16/12<1000),"######","###,###"))," per ",IF(D19=1,"year","month")," and has ",CHOOSE(RANDBETWEEN(1,2),"a yearly","an annual")," personal tax allowance of £",TEXT(E17,"###,###"),". ",IF(Worksheet!$B$5,CONCATENATE(B17," also pays National Insurance at a rate of ",C18*100,"% on all ",IF(F18=1,"annual","monthly")," income over £",IF(F18=1,TEXT(E18,"###,###"),TEXT(E18/12,IF(E18/12<1000,"######","###,###"))),". "),""),CONCATENATE("Calculate ",B17,"'s ",IF(F19=1,CHOOSE(RANDBETWEEN(1,2),"yearly","annual"),"monthly"),IF(E19=1,IF(Worksheet!$B$5," total deductions"," tax")," net pay"),". ")) -> Alice Taylor earns £854 per month and has a yearly personal tax allowance of £8,940. Alice also pays National Insurance at a rate of 7.8% on all annual income over £7,450. Calculate Alice's monthly net pay.
B17: =INDEX('SYSTEM FORMULAE 2'!A$2:A$201,RANDBETWEEN(1,200)) -> Alice | D17: Tax Allowance | E17: =RANDBETWEEN(800/6,1300/6)*60 -> 8940 | F17: NI allowance month/ann
B18: =INDEX('SYSTEM FORMULAE 2'!C$2:C$43,RANDBETWEEN(1,42)) -> Taylor | C18: =(RANDBETWEEN(5,20)+RANDBETWEEN(1,9)/10)/100 -> 0.078 | D18: NI Allowance | E18: =E17/6*5 -> 7450 | F18: =IF(Worksheet!$B$10,1,RANDBETWEEN(1,2)) -> 1 | G18: =IF(Worksheet!$B$5,(E16-E18)*C18,0) -> 218.4
D19: =IF(Worksheet!$B$10,1,RANDBETWEEN(1,2)) -> 2 | E19: =IF(Worksheet!$B$10,1,RANDBETWEEN(1,2)) -> 2 | F19: =IF(Worksheet!$B$10,1,RANDBETWEEN(1,2)) -> 2 | L19: =TEXT(IF(E19=1,G16+G18,E16-G16-G18)/IF(F19=2,12,1),"£#,###.00") -> £835.97
D20: earnings month/year | E20: net pay/ded | F20: final ans year/month
D21: Annual Income | E21: =IF(Worksheet!$B$9,RANDBETWEEN(E22+100+$D$2,1.2*$D$3)/6,RANDBETWEEN(E22+100,E22-100+$D$2)/6)*6 -> 17879 | F21: =E21-E22 -> 9179 | G21: =IF(F21<$D$2,$E$2*F21,IF(F21<$D$3,$E$3*(F21-$D$2)+$E$2*$D$2,$D$2*$E$2+$D$3*$E$3+$E$4*(F21-$D$3))) -> 0 | H21: 4 | I21: =CONCATENATE(B22," ",B23," earns £",TEXT(IF(D24=1,E21,E21/12),IF(AND(D24=2,E21/12<1000),"######","###,###"))," per ",IF(D24=1,"year","month")," and has ",CHOOSE(RANDBETWEEN(1,2),"a yearly","an annual")," personal tax allowance of £",TEXT(E22,"###,###"),". ",IF(Worksheet!$B$5,CONCATENATE(B22," also pays National Insurance at a rate of ",C23*100,"% on all ",IF(F23=1,"annual","monthly")," income over £",IF(F23=1,TEXT(E23,"###,###"),TEXT(E23/12,IF(E23/12<1000,"######","###,###"))),". "),""),CONCATENATE("Calculate ",B22,"'s ",IF(F24=1,CHOOSE(RANDBETWEEN(1,2),"yearly","annual"),"monthly"),IF(E24=1,IF(Worksheet!$B$5," total deductions"," tax")," net pay"),". ")) -> Naomi Anderson earns £1,490 per month and has an annual personal tax allowance of £8,700. Naomi also pays National Insurance at a rate of 13.9% on all monthly income over £604. Calculate Naomi's annual net pay.
B22: =INDEX('SYSTEM FORMULAE 2'!A$2:A$201,RANDBETWEEN(1,200)) -> Naomi | D22: Tax Allowance | E22: =RANDBETWEEN(800/6,1300/6)*60 -> 8700 | F22: NI allowance month/ann
B23: =INDEX('SYSTEM FORMULAE 2'!C$2:C$43,RANDBETWEEN(1,42)) -> Anderson | C23: =(RANDBETWEEN(5,20)+RANDBETWEEN(1,9)/10)/100 -> 0.139 | D23: NI Allowance | E23: =E22/6*5 -> 7250 | F23: =IF(Worksheet!$B$10,1,RANDBETWEEN(1,2)) -> 2 | G23: =IF(Worksheet!$B$5,(E21-E23)*C23,0) -> 1477.431
D24: =IF(Worksheet!$B$10,1,RANDBETWEEN(1,2)) -> 2 | E24: =IF(Worksheet!$B$10,1,RANDBETWEEN(1,2)) -> 2 | F24: =IF(Worksheet!$B$10,1,RANDBETWEEN(1,2)) -> 1 | L24: =TEXT(IF(E24=1,G21+G23,E21-G21-G23)/IF(F24=2,12,1),"£#,###.00") -> £16,401.57
D25: earnings month/year | E25: net pay/ded | F25: final ans year/month
D26: Annual Income | E26: =IF(Worksheet!$B$9,RANDBETWEEN(E27+100+$D$2,1.2*$D$3)/6,RANDBETWEEN(E27+100,E27-100+$D$2)/6)*6 -> 18768 | F26: =E26-E27 -> 7128 | G26: =IF(F26<$D$2,$E$2*F26,IF(F26<$D$3,$E$3*(F26-$D$2)+$E$2*$D$2,$D$2*$E$2+$D$3*$E$3+$E$4*(F26-$D$3))) -> 0 | H26: 5 | I26: =CONCATENATE(B27," ",B28," earns £",TEXT(IF(D29=1,E26,E26/12),IF(AND(D29=2,E26/12<1000),"######","###,###"))," per ",IF(D29=1,"year","month")," and has ",CHOOSE(RANDBETWEEN(1,2),"a yearly","an annual")," personal tax allowance of £",TEXT(E27,"###,###"),". ",IF(Worksheet!$B$5,CONCATENATE(B27," also pays National Insurance at a rate of ",C28*100,"% on all ",IF(F28=1,"annual","monthly")," income over £",IF(F28=1,TEXT(E28,"###,###"),TEXT(E28/12,IF(E28/12<1000,"######","###,###"))),". "),""),CONCATENATE("Calculate ",B27,"'s ",IF(F29=1,CHOOSE(RANDBETWEEN(1,2),"yearly","annual"),"monthly"),IF(E29=1,IF(Worksheet!$B$5," total deductions"," tax")," net pay"),". ")) -> Kelsey Hall earns £1,564 per month and has an annual personal tax allowance of £11,640. Kelsey also pays National Insurance at a rate of 10.1% on all monthly income over £808. Calculate Kelsey's monthly net pay.
B27: =INDEX('SYSTEM FORMULAE 2'!A$2:A$201,RANDBETWEEN(1,200)) -> Kelsey | D27: Tax Allowance | E27: =RANDBETWEEN(800/6,1300/6)*60 -> 11640 | F27: NI allowance month/ann
B28: =INDEX('SYSTEM FORMULAE 2'!C$2:C$43,RANDBETWEEN(1,42)) -> Hall | C28: =(RANDBETWEEN(5,20)+RANDBETWEEN(1,9)/10)/100 -> 0.101 | D28: NI Allowance | E28: =E27/6*5 -> 9700 | F28: =IF(Worksheet!$B$10,1,RANDBETWEEN(1,2)) -> 2 | G28: =IF(Worksheet!$B$5,(E26-E28)*C28,0) -> 915.868
D29: =IF(Worksheet!$B$10,1,RANDBETWEEN(1,2)) -> 2 | E29: =IF(Worksheet!$B$10,1,RANDBETWEEN(1,2)) -> 2 | F29: =IF(Worksheet!$B$10,1,RANDBETWEEN(1,2)) -> 2 | L29: =TEXT(IF(E29=1,G26+G28,E26-G26-G28)/IF(F29=2,12,1),"£#,###.00") -> £1,487.68
D30: earnings month/year | E30: net pay/ded | F30: final ans year/month
D31: Annual Income | E31: =IF(Worksheet!$B$9,RANDBETWEEN(E32+100+$D$2,1.2*$D$3)/6,RANDBETWEEN(E32+100,E32-100+$D$2)/6)*6 -> 15522 | F31: =E31-E32 -> 3882 | G31: =IF(F31<$D$2,$E$2*F31,IF(F31<$D$3,$E$3*(F31-$D$2)+$E$2*$D$2,$D$2*$E$2+$D$3*$E$3+$E$4*(F31-$D$3))) -> 0 | H31: 6 | I31: =CONCATENATE(B32," ",B33," earns £",TEXT(IF(D34=1,E31,E31/12),IF(AND(D34=2,E31/12<1000),"######","###,###"))," per ",IF(D34=1,"year","month")," and has ",CHOOSE(RANDBETWEEN(1,2),"a yearly","an annual")," personal tax allowance of £",TEXT(E32,"###,###"),". ",IF(Worksheet!$B$5,CONCATENATE(B32," also pays National Insurance at a rate of ",C33*100,"% on all ",IF(F33=1,"annual","monthly")," income over £",IF(F33=1,TEXT(E33,"###,###"),TEXT(E33/12,IF(E33/12<1000,"######","###,###"))),". "),""),CONCATENATE("Calculate ",B32,"'s ",IF(F34=1,CHOOSE(RANDBETWEEN(1,2),"yearly","annual"),"monthly"),IF(E34=1,IF(Worksheet!$B$5," total deductions"," tax")," net pay"),". ")) -> Amy Mitchell earns £15,522 per year and has a yearly personal tax allowance of £11,640. Amy also pays National Insurance at a rate of 5.1% on all monthly income over £808. Calculate Amy's yearly total deductions.
B32: =INDEX('SYSTEM FORMULAE 2'!A$2:A$201,RANDBETWEEN(1,200)) -> Amy | D32: Tax Allowance | E32: =RANDBETWEEN(800/6,1300/6)*60 -> 11640 | F32: NI allowance month/ann
B33: =INDEX('SYSTEM FORMULAE 2'!C$2:C$43,RANDBETWEEN(1,42)) -> Mitchell | C33: =(RANDBETWEEN(5,20)+RANDBETWEEN(1,9)/10)/100 -> 0.051 | D33: NI Allowance | E33: =E32/6*5 -> 9700 | F33: =IF(Worksheet!$B$10,1,RANDBETWEEN(1,2)) -> 2 | G33: =IF(Worksheet!$B$5,(E31-E33)*C33,0) -> 296.922
D34: =IF(Worksheet!$B$10,1,RANDBETWEEN(1,2)) -> 1 | E34: =IF(Worksheet!$B$10,1,RANDBETWEEN(1,2)) -> 1 | F34: =IF(Worksheet!$B$10,1,RANDBETWEEN(1,2)) -> 1 | L34: =TEXT(IF(E34=1,G31+G33,E31-G31-G33)/IF(F34=2,12,1),"£#,###.00") -> £296.92
D35: earnings month/year | E35: net pay/ded | F35: final ans year/month

Sheet SYSTEM FORMULAE 2
A1: Names | B1: 1998 baby names - http://www.statistics.gov.uk/statbase/Product.asp?vlnk=15282
A2: Jack | C2: Smith
A3: Thomas | C3: Wilson
A4: James | C4: Jones
A5: Daniel | C5: Campbell
A6: Josh | C6: Williams
A7: Matthew | C7: Brown
A8: Samuel | C8: Taylor
A9: Callum | C9: Kelly
A10: Joseph | C10: Davies
A11: Jordan | C11: Johnston
A12: Connor | C12: Evans
A13: Ryan | C13: Robertson
A14: Luke | C14: Moore
A15: William | C15: Thomas
A16: Harry | C16: Thomson
A17: Ben | C17: Roberts
A18: George | C18: Johnson
A19: Lewis | C19: Smyth
A20: Alexander | C20: Lewis
A21: Oliver | C21: Stewart
A22: Adam | C22: Anderson
A23: Jake | C23: Hughes
A24: Michael | C24: Scott
A25: Liam | C25: Wright
A26: Nathan | C26: Docherty
A27: Kieran | C27: Murray
A28: Jacob | C28: MacDonald
A29: Cameron | C29: Reid
A30: Ben | C30: Taylor
A31: Mohammed | C31: Clark
A32: Aaron | C32: Ross
A33: Christopher | C33: Young
A34: Bradley | C34: Mitchell
A35: Jamie | C35: Watson
A36: Charlie | C36: Paterson
A37: Brandon | C37: Morrison
A38: Robert | C38: Jackson
A39: Kyle | C39: Wood
A40: David | C40: Hall
A41: Owen | C41: Green
A42: Charles | C42: White
A43: Andrew | C43: Walker
A44: Reece | C44: Carlyle
A45: Edward | C45: Forbes
A46: Dylan | C46: Glen
A47: Alex | C47: Davidson
A48: Ethan | C48: McDonald
A49: Jonathan | C49: McGrath
A50: Sam | C50: MacInnes
A51: Louis
A52: Max
A53: Dominic
A54: John
A55: Ashley
A56: Rhys
A57: Henry
A58: Conor
A59: Joe
A60: Tyler
A61: Scott
A62: Sean
A63: Nick
A64: Ross
A65: Morgan
A66: Elliot
A67: Patrick
A68: Peter
A69: Billy
A70: Mark
A71: Stephen
A72: Alfie
A73: Harrison
A74: Lee
A75: Anthony
A76: Mitchell
A77: Joel
A78: Toby
A79: Paul
A80: Jay
A81: Jason
A82: Aidan
A83: Richard
A84: Mohammad
A85: Isaac
A86: Declan
A87: Josh
A88: Steven
A89: Marcus
A90: Muhammad
A91: Elliott
A92: Harvey
A93: Tom
A94: Christian
A95: Kane
A96: Shane
A97: Leon
A98: Shaun
A99: Corey
A100: Ellis
A101: Kai
A102: Natalie
A103: Abbie
A104: Francesca
A105: Melissa
A106: Katherine
A107: Harriet
A108: Imogen
A109: Jodie
A110: Gemma
A111: Kayleigh
A112: Lily
A113: Jennifer
A114: Kate
A115: Stephanie
A116: Daisy
A117: Niamh
A118: Millie
A119: Aimee
A120: Kirsty
A121: Hollie
A122: Rosie
A123: Jordan
A124: Mollie
A125: Alisha
A126: Mia
A127: Isobel
A128: Tia
A129: Ellen
A130: Erin
A131: Bethan
A132: Sian
A133: Alicia
A134: Rhiannon
A135: Ashleigh
A136: Catherine
A137: Madeleine
A138: Isabelle
A139: Kelsey
A140: Sophia
A141: Isabella
A142: Naomi
A143: Yasmin
A144: Freya
A145: Morgan
A146: Robyn
A147: Isabel
A148: Maisie
A149: Poppy
A150: Rachael
A151: Chantelle
A152: Chloe
A153: Emily
A154: Megan
A155: Jessica
A156: Sophie
A157: Charlotte
A158: Hannah
A159: Lauren
A160: Rebecca
A161: Lucy
A162: Amy
A163: Georgia
A164: Katie
A165: Bethany
A166: Emma
A167: Olivia
A168: Courtney
A169: Shannon
A170: Eleanor
A171: Jade
A172: Ellie
A173: Abigail
A174: Holly
A175: Molly
A176: Laura
A177: Alice
A178: Sarah
A179: Caitlin
A180: Rachel
A181: Elizabeth
A182: Amber
A183: Paige
A184: Georgina
A185: Danielle
A186: Grace
A187: Nicole
A188: Natasha
A189: Ella
A190: Chelsea
A191: Leah
A192: Victoria
A193: Anna
A194: Phoebe
A195: Samantha
A196: Zoe
A197: Alexandra
A198: Jasmine
A199: Amelia
A200: Louise
... 1 more rows
